[Event "Live Chess"]
[Site "Chess.com"]
[Date "2023.05.21"]
[Round "-"]
[White "ChessTWSS"]
[Black "Trendle"]
[Result "0-1"]
[WhiteElo "1593"]
[BlackElo "2658"]
[TimeControl "300"]
[EndTime "3:43:23 PDT"]
[Termination "Trendle won by checkmate"]

1. d4 {[%clk 0:04:57.8]} 1... f5 {[%clk 0:04:55.6]} 2. Bf4 {[%clk 0:04:51.9]}
2... Nf6 {[%clk 0:04:53.9]} 3. e3 {[%clk 0:04:47.9]} 3... g6 {[%clk 0:04:44.5]}
4. c3 {[%clk 0:04:41.2]} 4... Bg7 {[%clk 0:04:43.1]} 5. Nd2 {[%clk 0:04:32.3]}
5... d6 {[%clk 0:04:41.2]} 6. Ngf3 {[%clk 0:04:09]} 6... Nc6 {[%clk 0:04:38.2]}
7. Bb5 {[%clk 0:04:04.2]} 7... O-O {[%clk 0:04:36.1]} 8. Bxc6 {[%clk 0:04:00.3]}
8... bxc6 {[%clk 0:04:34.9]} 9. O-O {[%clk 0:03:59.9]} 9... Rb8 {[%clk
0:04:33.8]} 10. b3 {[%clk 0:03:52.4]} 10... Nd5 {[%clk 0:04:31.7]} 11. Qc2
{[%clk 0:03:47.4]} 11... Nxf4 {[%clk 0:04:22.7]} 12. exf4 {[%clk 0:03:46.4]}
12... e6 {[%clk 0:04:14.7]} 13. g3 {[%clk 0:03:42.8]} 13... Qf6 {[%clk
0:04:11.5]} 14. h4 {[%clk 0:03:35.5]} 14... c5 {[%clk 0:04:07.3]} 15. dxc5
{[%clk 0:03:32]} 15... e5 {[%clk 0:03:59.2]} 16. cxd6 {[%clk 0:03:25.4]} 16...
cxd6 {[%clk 0:03:59.1]} 17. fxe5 {[%clk 0:03:18.7]} 17... dxe5 {[%clk 0:03:59]}
18. Nc4 {[%clk 0:03:10.7]} 18... e4 {[%clk 0:03:51.3]} 19. Nfe5 {[%clk
0:03:07.4]} 19... Re8 {[%clk 0:03:47.5]} 20. f4 {[%clk 0:03:01.6]} 20... exf3
{[%clk 0:03:43.7]} 21. Rxf3 {[%clk 0:02:56.5]} 21... Rxe5 {[%clk 0:03:41]} 22.
Nxe5 {[%clk 0:02:53.4]} 22... Qxe5 {[%clk 0:03:40.9]} 23. a3 {[%clk 0:02:38.7]}
23... Bb7 {[%clk 0:03:39.5]} 24. Rff1 {[%clk 0:02:34]} 24... Qxg3+ {[%clk
0:03:36.8]} 25. Qg2 {[%clk 0:02:28.9]} 25... Qxg2# {[%clk 0:03:36]} 0-1

[Event "Live Chess"]
[Site "Chess.com"]
[Date "2023.05.21"]
[Round "-"]
[White "chessleanstrategist"]
[Black "CeladonFish"]
[Result "0-1"]
[WhiteElo "452"]
[BlackElo "1088"]
[TimeControl "300"]
[EndTime "3:43:27 PDT"]
[Termination "CeladonFish won on time"]

1. c4 {[%clk 0:04:58.9]} 1... Nf6 {[%clk 0:04:58.5]} 2. Nf3 {[%clk 0:04:57.8]}
2... g6 {[%clk 0:04:57.8]} 3. g3 {[%clk 0:04:56.3]} 3... Bg7 {[%clk 0:04:57.3]}
4. Bg2 {[%clk 0:04:55.6]} 4... O-O {[%clk 0:04:55.4]} 5. Nc3 {[%clk 0:04:54.4]}
5... c6 {[%clk 0:04:53.6]} 6. O-O {[%clk 0:04:53.4]} 6... e6 {[%clk 0:04:52.1]}
7. d3 {[%clk 0:04:52.5]} 7... d5 {[%clk 0:04:51.1]} 8. cxd5 {[%clk 0:04:42.9]}
8... cxd5 {[%clk 0:04:49.4]} 9. Ne5 {[%clk 0:04:28.1]} 9... Nh5 {[%clk
0:04:40.5]} 10. e3 {[%clk 0:04:16.2]} 10... Bxe5 {[%clk 0:04:37.6]} 11. f4
{[%clk 0:04:09.4]} 11... Bxc3 {[%clk 0:04:34.3]} 12. bxc3 {[%clk 0:04:07.2]}
12... Qb6 {[%clk 0:04:31.3]} 13. d4 {[%clk 0:03:48.7]} 13... Nd7 {[%clk
0:04:21.4]} 14. Ba3 {[%clk 0:03:39.5]} 14... Re8 {[%clk 0:04:18.8]} 15. Rb1
{[%clk 0:03:27.5]} 15... Qc7 {[%clk 0:04:12.9]} 16. Qa4 {[%clk 0:03:10]} 16...
a6 {[%clk 0:03:56.9]} 17. Qc2 {[%clk 0:03:00.5]} 17... Nhf6 {[%clk 0:03:53.1]}
18. Rfc1 {[%clk 0:02:42.3]} 18... Ne4 {[%clk 0:03:48.3]} 19. Bxe4 {[%clk
0:02:39.9]} 19... dxe4 {[%clk 0:03:46.6]} 20. Qxe4 {[%clk 0:02:38.6]} 20... f5
{[%clk 0:03:38.6]} 21. Qg2 {[%clk 0:02:32.7]} 21... Nb6 {[%clk 0:03:31.3]} 22.
Bb2 {[%clk 0:01:50.2]} 22... Na4 {[%clk 0:03:19.2]} 23. a3 {[%clk 0:01:43.2]}
23... Qc6 {[%clk 0:03:10.2]} 24. c4 {[%clk 0:01:33.3]} 24... Qxg2+ {[%clk
0:03:03.3]} 25. Kxg2 {[%clk 0:01:32]} 25... b6 {[%clk 0:03:01.9]} 26. c5 {[%clk
0:01:18.3]} 26... bxc5 {[%clk 0:02:57.4]} 27. dxc5 {[%clk 0:01:16.6]} 27... Bb7+
{[%clk 0:02:55]} 28. Kf2 {[%clk 0:01:10.1]} 28... Rac8 {[%clk 0:02:54]} 29. Be5
{[%clk 0:00:56]} 29... Rxc5 {[%clk 0:02:48.4]} 30. Rxc5 {[%clk 0:00:43.7]} 30...
Nxc5 {[%clk 0:02:46.9]} 31. Rxb7 {[%clk 0:00:43.3]} 31... Nxb7 {[%clk
0:02:45.7]} 32. Kf3 {[%clk 0:00:21.7]} 32... Rc8 {[%clk 0:02:42.3]} 33. g4
{[%clk 0:00:13.4]} 33... fxg4+ {[%clk 0:02:39.7]} 34. Kxg4 {[%clk 0:00:11.8]}
34... Rc2 {[%clk 0:02:29.6]} 0-1

[Event "Live Chess"]
[Site "Chess.com"]
[Date "2023.05.21"]
[Round "-"]
[White "FailsGambits"]
[Black "Berdgross"]
[Result "1-0"]
[WhiteElo "1337"]
[BlackElo "668"]
[TimeControl "300"]
[EndTime "3:43:29 PDT"]
[Termination "FailsGambits won by checkmate"]

1. e4 {[%clk 0:04:58.4]} 1... d5 {[%clk 0:04:58.5]} 2. exd5 {[%clk 0:04:57]}
2... Qxd5 {[%clk 0:04:57.5]} 3. Nc3 {[%clk 0:04:56]} 3... Qd8 {[%clk 0:04:56.3]}
4. d3 {[%clk 0:04:54.7]} 4... Nc6 {[%clk 0:04:55.9]} 5. Nf3 {[%clk 0:04:53.4]}
5... Nf6 {[%clk 0:04:55.4]} 6. Be2 {[%clk 0:04:49.9]} 6... Bg4 {[%clk
0:04:54.3]} 7. h3 {[%clk 0:04:48.8]} 7... Bxf3 {[%clk 0:04:52.7]} 8. Bxf3 {[%clk
0:04:48.1]} 8... Ne5 {[%clk 0:04:50.1]} 9. O-O {[%clk 0:04:42.6]} 9... e6 {[%clk
0:04:44.8]} 10. Bxb7 {[%clk 0:04:36.5]} 10... Rb8 {[%clk 0:04:43.1]} 11. Bf3
{[%clk 0:04:33.4]} 11... Nxf3+ {[%clk 0:04:40.3]} 12. Qxf3 {[%clk 0:04:32.1]}
12... Bd6 {[%clk 0:04:34.5]} 13. Bg5 {[%clk 0:04:18.1]} 13... Be7 {[%clk
0:04:31.9]} 14. Bxf6 {[%clk 0:03:52.5]} 14... Bxf6 {[%clk 0:04:28.8]} 15. Qc6+
{[%clk 0:03:51.6]} 15... Qd7 {[%clk 0:04:23.8]} 16. Qxd7+ {[%clk 0:03:48.5]}
16... Kxd7 {[%clk 0:04:22.9]} 17. Ne4 {[%clk 0:03:48.4]} 17... Be7 {[%clk
0:04:18.6]} 18. b3 {[%clk 0:03:39.1]} 18... f5 {[%clk 0:04:16.3]} 19. Nd2 {[%clk
0:03:34.2]} 19... Bg5 {[%clk 0:04:13.8]} 20. f4 {[%clk 0:03:30.3]} 20... Bf6
{[%clk 0:04:11.2]} 21. Rae1 {[%clk 0:03:25.8]} 21... Bc3 {[%clk 0:04:08.9]} 22.
Rd1 {[%clk 0:03:24.4]} 22... Bxd2 {[%clk 0:04:05.9]} 23. Rxd2 {[%clk 0:03:23.4]}
23... g6 {[%clk 0:03:57.4]} 24. Re2 {[%clk 0:03:19.7]} 24... h5 {[%clk
0:03:53.3]} 25. Rfe1 {[%clk 0:03:17.7]} 25... Rbe8 {[%clk 0:03:49.7]} 26. Re5
{[%clk 0:03:16]} 26... Kd6 {[%clk 0:03:44.8]} 27. Ra5 {[%clk 0:03:10.2]} 27...
Ra8 {[%clk 0:03:40.3]} 28. Ra6+ {[%clk 0:03:03.9]} 28... Kd5 {[%clk 0:03:36.6]}
29. Rexe6 {[%clk 0:02:58.1]} 29... Kd4 {[%clk 0:03:23.9]} 30. Rxg6 {[%clk
0:02:53.9]} 30... Kc3 {[%clk 0:03:21.6]} 31. Rgc6+ {[%clk 0:02:49.3]} 31... Kb2
{[%clk 0:03:18.6]} 32. Rxc7 {[%clk 0:02:09.8]} 32... Rhd8 {[%clk 0:03:09.1]} 33.
Rcxa7 {[%clk 0:02:03]} 33... Rxa7 {[%clk 0:03:07.1]} 34. Rxa7 {[%clk 0:02:02.9]}
34... Re8 {[%clk 0:03:04.7]} 35. c4 {[%clk 0:01:50]} 35... Re1+ {[%clk
0:02:55.3]} 36. Kf2 {[%clk 0:01:32.6]} 36... Rd1 {[%clk 0:02:45.8]} 37. c5
{[%clk 0:01:30]} 37... Rxd3 {[%clk 0:02:42.5]} 38. c6 {[%clk 0:01:27.8]} 38...
Rc3 {[%clk 0:02:37.6]} 39. c7 {[%clk 0:01:16.8]} 39... Rc2+ {[%clk 0:02:28.9]}
40. Kg3 {[%clk 0:01:14.9]} 40... Rc3+ {[%clk 0:02:26.4]} 41. Kh4 {[%clk
0:01:13.8]} 41... Rc2 {[%clk 0:02:11.2]} 42. g4 {[%clk 0:01:12.3]} 42... hxg4
{[%clk 0:02:08.9]} 43. hxg4 {[%clk 0:01:12.2]} 43... fxg4 {[%clk 0:02:07.9]} 44.
Kxg4 {[%clk 0:01:12.1]} 44... Rg2+ {[%clk 0:01:57.4]} 45. Kf5 {[%clk 0:01:09.8]}
45... Rc2 {[%clk 0:01:54.8]} 46. Kg6 {[%clk 0:01:00.1]} 46... Rc6+ {[%clk
0:01:45.1]} 47. Kf7 {[%clk 0:00:58.6]} 47... Rc5 {[%clk 0:01:34.3]} 48. f5
{[%clk 0:00:57.6]} 48... Rxf5+ {[%clk 0:01:31.8]} 49. Ke6 {[%clk 0:00:55.4]}
49... Rc5 {[%clk 0:01:30.2]} 50. Kd6 {[%clk 0:00:54.8]} 50... Rc1 {[%clk
0:01:21.8]} 51. Kd7 {[%clk 0:00:53.7]} 51... Rc5 {[%clk 0:01:14.3]} 52. c8=Q
{[%clk 0:00:51.2]} 52... Rxc8 {[%clk 0:01:12.9]} 53. Kxc8 {[%clk 0:00:51.1]}
53... Kc3 {[%clk 0:01:10]} 54. a4 {[%clk 0:00:51]} 54... Kb4 {[%clk 0:01:08.8]}
55. a5 {[%clk 0:00:48.9]} 55... Kxb3 {[%clk 0:01:06.7]} 56. a6 {[%clk
0:00:48.5]} 56... Kb4 {[%clk 0:01:06]} 57. Rb7+ {[%clk 0:00:47.9]} 57... Ka5
{[%clk 0:01:04.9]} 58. a7 {[%clk 0:00:47.8]} 58... Ka6 {[%clk 0:01:03.8]} 59.
a8=Q# {[%clk 0:00:47.7]} 1-0

[Event "Live Chess"]
[Site "Chess.com"]
[Date "2023.05.21"]
[Round "-"]
[White "NAZRIZ1977"]
[Black "manthanit"]
[Result "1-0"]
[WhiteElo "1967"]
[BlackElo "1096"]
[TimeControl "300"]
[EndTime "3:43:40 PDT"]
[Termination "NAZRIZ1977 won by resignation"]

1. c4 {[%clk 0:04:54.8]} 1... e6 {[%clk 0:04:59.3]} 2. g3 {[%clk 0:04:53.1]}
2... d6 {[%clk 0:04:58.5]} 3. Bg2 {[%clk 0:04:52.7]} 3... Nc6 {[%clk 0:04:53]}
4. Nf3 {[%clk 0:04:51.6]} 4... b6 {[%clk 0:04:48.6]} 5. Nd4 {[%clk 0:04:49.2]}
5... d5 {[%clk 0:04:36]} 6. Nxc6 {[%clk 0:04:46.2]} 6... Qd6 {[%clk 0:04:31.6]}
7. Nd4 {[%clk 0:04:37.7]} 7... Bb7 {[%clk 0:04:30.6]} 8. Nb5 {[%clk 0:04:33.7]}
8... Qd7 {[%clk 0:04:20.3]} 9. O-O {[%clk 0:04:30.6]} 9... Rb8 {[%clk
0:04:19.4]} 10. Nxa7 {[%clk 0:04:26.2]} 10... dxc4 {[%clk 0:04:16.6]} 11. Na3
{[%clk 0:04:21.2]} 11... Bxg2 {[%clk 0:04:14.9]} 12. Kxg2 {[%clk 0:04:21.1]}
12... c6 {[%clk 0:04:07.9]} 13. Nxc4 {[%clk 0:04:16]} 13... Rb7 {[%clk
0:04:06.1]} 14. Kg1 {[%clk 0:04:07.6]} 14... Rxa7 {[%clk 0:04:03.4]} 15. b3
{[%clk 0:03:59.3]} 15... Bc5 {[%clk 0:03:57.3]} 16. Bb2 {[%clk 0:03:56.4]} 16...
Nf6 {[%clk 0:03:54.2]} 17. d4 {[%clk 0:03:54]} 17... Be7 {[%clk 0:03:45.9]} 18.
Ne5 {[%clk 0:03:51]} 18... Qc7 {[%clk 0:03:37.8]} 19. Qc2 {[%clk 0:03:48.3]}
19... O-O {[%clk 0:03:36.3]} 20. Qxc6 {[%clk 0:03:46.1]} 20... Qxc6 {[%clk
0:03:25.9]} 21. Nxc6 {[%clk 0:03:46]} 21... Rc7 {[%clk 0:03:11.5]} 22. Nxe7+
{[%clk 0:03:44.9]} 22... Rxe7 {[%clk 0:03:10.2]} 23. Ba3 {[%clk 0:03:44.8]}
23... Rc7 {[%clk 0:03:03.4]} 24. Bxf8 {[%clk 0:03:44.7]} 24... Kxf8 {[%clk
0:03:02.3]} 25. Rfc1 {[%clk 0:03:44.1]} 25... h6 {[%clk 0:03:01.7]} 26. Rxc7
{[%clk 0:03:41.4]} 1-0

[Event "Live Chess"]
[Site "Chess.com"]
[Date "2023.05.21"]
[Round "-"]
[White "OleksiyJr1"]
[Black "Geomorph"]
[Result "0-1"]
[WhiteElo "977"]
[BlackElo "1283"]
[TimeControl "300"]
[EndTime "3:43:50 PDT"]
[Termination "Geomorph won by checkmate"]

1. e4 {[%clk 0:04:58.6]} 1... e5 {[%clk 0:04:59]} 2. Nf3 {[%clk 0:04:57.6]} 2...
Nc6 {[%clk 0:04:58.6]} 3. Bc4 {[%clk 0:04:56.4]} 3... Bc5 {[%clk 0:04:58.1]} 4.
Nc3 {[%clk 0:04:56.3]} 4... Nf6 {[%clk 0:04:56.3]} 5. d3 {[%clk 0:04:55.7]} 5...
d6 {[%clk 0:04:55.7]} 6. Bg5 {[%clk 0:04:52.6]} 6... h6 {[%clk 0:04:53.6]} 7.
Bxf6 {[%clk 0:04:51]} 7... Qxf6 {[%clk 0:04:51.4]} 8. Nd5 {[%clk 0:04:50.6]}
8... Qd8 {[%clk 0:04:50.5]} 9. O-O {[%clk 0:04:49.1]} 9... O-O {[%clk
0:04:49.6]} 10. h3 {[%clk 0:04:48.3]} 10... Na5 {[%clk 0:04:44.2]} 11. c3 {[%clk
0:04:43.1]} 11... Nxc4 {[%clk 0:04:38.4]} 12. dxc4 {[%clk 0:04:41.2]} 12... a6
{[%clk 0:04:33.7]} 13. b4 {[%clk 0:04:40]} 13... Ba7 {[%clk 0:04:32]} 14. Nd2
{[%clk 0:04:33.8]} 14... c6 {[%clk 0:04:27.1]} 15. Ne3 {[%clk 0:04:30.7]} 15...
Qg5 {[%clk 0:04:20.5]} 16. Re1 {[%clk 0:04:28.1]} 16... f5 {[%clk 0:03:56.4]}
17. exf5 {[%clk 0:04:25.4]} 17... Bxf5 {[%clk 0:03:39.3]} 18. Nf3 {[%clk
0:04:19.6]} 18... Qf4 {[%clk 0:03:21.2]} 19. Qxd6 {[%clk 0:04:10.9]} 19... Bxh3
{[%clk 0:03:09.2]} 20. gxh3 {[%clk 0:04:00.9]} 20... Qxf3 {[%clk 0:03:07.2]} 21.
Qxe5 {[%clk 0:03:51.8]} 21... Qxf2+ {[%clk 0:03:00]} 22. Kh1 {[%clk 0:03:49.1]}
22... Qf3+ {[%clk 0:02:50.2]} 23. Kg1 {[%clk 0:03:40.5]} 23... Qxh3 {[%clk
0:02:41]} 24. c5 {[%clk 0:03:32.8]} 24... Rae8 {[%clk 0:02:35.4]} 25. Qd4 {[%clk
0:03:21.2]} 25... Bb8 {[%clk 0:02:31.2]} 26. Re2 {[%clk 0:03:15.8]} 26... Qg3+
{[%clk 0:02:11.7]} 27. Rg2 {[%clk 0:03:07.3]} 27... Qxe3+ {[%clk 0:02:07.2]} 28.
Qxe3 {[%clk 0:03:07.1]} 28... Rxe3 {[%clk 0:02:06.2]} 29. Rf1 {[%clk 0:03:06.2]}
29... Rxf1+ {[%clk 0:02:03.3]} 30. Kxf1 {[%clk 0:03:06.1]} 30... Rxc3 {[%clk
0:01:56.1]} 31. Rd2 {[%clk 0:03:01.7]} 31... Bf4 {[%clk 0:01:44]} 32. Rd7 {[%clk
0:02:56.4]} 32... Rc1+ {[%clk 0:01:33.8]} 33. Kf2 {[%clk 0:02:51.8]} 33... Rc2+
{[%clk 0:01:32.6]} 34. Kf3 {[%clk 0:02:51.1]} 34... g5 {[%clk 0:01:31.6]} 35.
Rxb7 {[%clk 0:02:42.7]} 35... Rxa2 {[%clk 0:01:30.1]} 36. Rb8+ {[%clk
0:02:41.8]} 36... Kf7 {[%clk 0:01:28.7]} 37. Rb7+ {[%clk 0:02:40.8]} 37... Ke6
{[%clk 0:01:27.3]} 38. Rb6 {[%clk 0:02:39.8]} 38... Kd5 {[%clk 0:01:25.9]} 39.
Kg4 {[%clk 0:02:38.4]} 39... Kc4 {[%clk 0:01:13.2]} 40. Kh5 {[%clk 0:02:36.4]}
40... Rh2+ {[%clk 0:01:11.9]} 41. Kg6 {[%clk 0:02:34.7]} 41... g4 {[%clk
0:01:09.4]} 42. Rxc6 {[%clk 0:02:30.9]} 42... g3 {[%clk 0:01:02.8]} 43. Rxa6
{[%clk 0:02:23.6]} 43... Kxb4 {[%clk 0:00:55]} 44. c6 {[%clk 0:02:21.9]} 44...
Rf2 {[%clk 0:00:43]} 45. Rb6+ {[%clk 0:02:18.9]} 45... Kc5 {[%clk 0:00:41.2]}
46. Ra6 {[%clk 0:02:15.2]} 46... g2 {[%clk 0:00:39.7]} 47. Ra5+ {[%clk
0:02:14.1]} 47... Kxc6 {[%clk 0:00:37.5]} 48. Ra6+ {[%clk 0:02:12.6]} 48... Kd5
{[%clk 0:00:35.8]} 49. Ra5+ {[%clk 0:02:11.9]} 49... Ke4 {[%clk 0:00:34.8]} 50.
Ra4+ {[%clk 0:02:11.2]} 50... Kf3 {[%clk 0:00:34]} 51. Ra3+ {[%clk 0:02:10.6]}
51... Kg4 {[%clk 0:00:33.2]} 52. Ra1 {[%clk 0:02:03.8]} 52... Rf1 {[%clk
0:00:31.4]} 53. Ra2 {[%clk 0:01:53]} 53... g1=Q {[%clk 0:00:30.2]} 54. Kf6
{[%clk 0:01:52.5]} 54... Bg5+ {[%clk 0:00:26.5]} 55. Ke6 {[%clk 0:01:50.4]}
55... Qb6+ {[%clk 0:00:25.3]} 56. Kd7 {[%clk 0:01:38]} 56... Rf7+ {[%clk
0:00:22.9]} 57. Ke8 {[%clk 0:01:35.9]} 57... Qe6# {[%clk 0:00:21.4]} 0-1

[Event "Live Chess"]
[Site "Chess.com"]
[Date "2023.05.21"]
[Round "-"]
[White "Singapourfeuj"]
[Black "apl_trainer"]
[Result "1-0"]
[WhiteElo "2183"]
[BlackElo "1772"]
[TimeControl "300"]
[EndTime "3:43:50 PDT"]
[Termination "Singapourfeuj won on time"]

1. d4 {[%clk 0:04:58.6]} 1... Nf6 {[%clk 0:04:58.9]} 2. Nf3 {[%clk 0:04:57.9]}
2... c5 {[%clk 0:04:57.7]} 3. d5 {[%clk 0:04:57]} 3... b5 {[%clk 0:04:56.1]} 4.
a4 {[%clk 0:04:55.4]} 4... b4 {[%clk 0:04:47.4]} 5. c4 {[%clk 0:04:54]} 5... g6
{[%clk 0:04:41.9]} 6. b3 {[%clk 0:04:52.6]} 6... Bg7 {[%clk 0:04:39.9]} 7. Ra2
{[%clk 0:04:51.8]} 7... d6 {[%clk 0:04:38.2]} 8. Nbd2 {[%clk 0:04:50.4]} 8...
O-O {[%clk 0:04:36.7]} 9. e4 {[%clk 0:04:49.3]} 9... e5 {[%clk 0:04:28]} 10. h3
{[%clk 0:04:43.7]} 10... a5 {[%clk 0:04:26.3]} 11. Bd3 {[%clk 0:04:42]} 11...
Ra7 {[%clk 0:04:24.6]} 12. O-O {[%clk 0:04:40.8]} 12... Nh5 {[%clk 0:04:23]} 13.
Re1 {[%clk 0:04:37.9]} 13... f5 {[%clk 0:04:10.6]} 14. Nf1 {[%clk 0:04:30.9]}
14... f4 {[%clk 0:04:08.4]} 15. N3h2 {[%clk 0:04:23.4]} 15... Nf6 {[%clk
0:04:04.4]} 16. Ng4 {[%clk 0:04:15.6]} 16... h5 {[%clk 0:04:00.8]} 17. Nxf6+
{[%clk 0:04:14.4]} 17... Qxf6 {[%clk 0:03:59.5]} 18. Nh2 {[%clk 0:04:12.9]}
18... Bh6 {[%clk 0:03:47.8]} 19. Bf1 {[%clk 0:04:10.9]} 19... Rh7 {[%clk
0:03:44.7]} 20. g3 {[%clk 0:04:07.7]} 20... Qf7 {[%clk 0:03:26.9]} 21. gxf4
{[%clk 0:04:00.2]} 21... Bxf4 {[%clk 0:03:20.1]} 22. Bxf4 {[%clk 0:03:58.8]}
22... Qxf4 {[%clk 0:03:18.2]} 23. Qd2 {[%clk 0:03:57.4]} 23... Qh4 {[%clk
0:03:09.7]} 24. Re3 {[%clk 0:03:54.8]} 24... Rhf7 {[%clk 0:03:02.4]} 25. Rg3
{[%clk 0:03:52.3]} 25... Kh7 {[%clk 0:03:00.7]} 26. Qg5 {[%clk 0:03:46.3]} 26...
Qxg5 {[%clk 0:02:45.6]} 27. Rxg5 {[%clk 0:03:44.2]} 27... Nd7 {[%clk 0:02:43.2]}
28. f3 {[%clk 0:03:38.3]} 28... Nf6 {[%clk 0:02:33.3]} 29. h4 {[%clk 0:03:29.7]}
29... Kh6 {[%clk 0:02:28.3]} 30. f4 {[%clk 0:03:26.5]} 30... exf4 {[%clk
0:02:23.6]} 31. e5 {[%clk 0:03:24.5]} 31... Ne4 {[%clk 0:01:52.4]} 32. e6 {[%clk
0:03:22]} 32... Rf6 {[%clk 0:01:39.6]} 33. Nf3 {[%clk 0:03:20.2]} 33... Bxe6
{[%clk 0:01:11.9]} 34. dxe6 {[%clk 0:03:17.3]} 34... Rxe6 {[%clk 0:01:10.7]} 35.
Bh3 {[%clk 0:03:03]} 35... Ref6 {[%clk 0:01:00.5]} 36. Re2 {[%clk 0:02:59.2]}
36... Re8 {[%clk 0:00:51.9]} 37. Rd5 {[%clk 0:02:54.5]} 37... Rff8 {[%clk
0:00:26.2]} 38. Ng5 {[%clk 0:02:50.1]} 38... Nxg5 {[%clk 0:00:18.9]} 39. hxg5+
{[%clk 0:02:47.3]} 39... Kg7 {[%clk 0:00:18.1]} 40. Rxe8 {[%clk 0:02:45.4]}
40... Rxe8 {[%clk 0:00:17.3]} 41. Rxd6 {[%clk 0:02:44.8]} 41... Re3 {[%clk
0:00:16.2]} 42. Rd7+ {[%clk 0:02:42.4]} 42... Kf8 {[%clk 0:00:14.8]} 43. Bg2
{[%clk 0:02:38.6]} 43... Rxb3 {[%clk 0:00:13.2]} 44. Bd5 {[%clk 0:02:37.4]}
44... Rc3 {[%clk 0:00:11.4]} 45. Rf7+ {[%clk 0:02:35.5]} 45... Ke8 {[%clk
0:00:10.5]} 46. Rxf4 {[%clk 0:02:31.5]} 46... b3 {[%clk 0:00:09.5]} 47. Rf1
{[%clk 0:02:27.9]} 47... b2 {[%clk 0:00:08]} 48. Be4 {[%clk 0:02:26.7]} 48...
Rc1 {[%clk 0:00:06.5]} 49. Bxg6+ {[%clk 0:02:25.6]} 49... Ke7 {[%clk 0:00:05.5]}
50. Bb1 {[%clk 0:02:23.8]} 50... Ke6 {[%clk 0:00:04]} 51. g6 {[%clk 0:02:22.9]}
1-0

[Event "Live Chess"]
[Site "Chess.com"]
[Date "2023.05.21"]
[Round "-"]
[White "Duke_of_Bebington"]
[Black "Chesscoach_Golichenko"]
[Result "0-1"]
[WhiteElo "1577"]
[BlackElo "2618"]
[TimeControl "300"]
[EndTime "3:43:59 PDT"]
[Termination "Chesscoach_Golichenko won by resignation"]

1. e4 {[%clk 0:04:57.7]} 1... Nf6 {[%clk 0:04:58.5]} 2. e5 {[%clk 0:04:55.8]}
2... Nd5 {[%clk 0:04:57.8]} 3. c4 {[%clk 0:04:54.9]} 3... Nb6 {[%clk 0:04:56.6]}
4. d4 {[%clk 0:04:54.5]} 4... d6 {[%clk 0:04:55.9]} 5. f4 {[%clk 0:04:51.8]}
5... dxe5 {[%clk 0:04:54.6]} 6. fxe5 {[%clk 0:04:49.5]} 6... Bf5 {[%clk
0:04:54]} 7. Nf3 {[%clk 0:04:45.5]} 7... e6 {[%clk 0:04:52.8]} 8. Nc3 {[%clk
0:04:43.6]} 8... Bb4 {[%clk 0:04:51.1]} 9. a3 {[%clk 0:04:41.9]} 9... Bxc3+
{[%clk 0:04:48.9]} 10. bxc3 {[%clk 0:04:41.8]} 10... c5 {[%clk 0:04:47.6]} 11.
Be2 {[%clk 0:04:34.8]} 11... Nc6 {[%clk 0:04:45.9]} 12. a4 {[%clk 0:04:19.2]}
12... Bg4 {[%clk 0:03:43.6]} 13. Be3 {[%clk 0:04:09.9]} 13... Bxf3 {[%clk
0:03:21.4]} 14. Bxf3 {[%clk 0:04:08.1]} 14... Nxc4 {[%clk 0:03:20]} 15. Bf2
{[%clk 0:04:00]} 15... O-O {[%clk 0:02:58.5]} 16. O-O {[%clk 0:03:52.2]} 16...
Rc8 {[%clk 0:02:46.8]} 17. Qb3 {[%clk 0:03:47]} 17... N6a5 {[%clk 0:02:38.6]}
18. Qd1 {[%clk 0:03:36.3]} 18... cxd4 {[%clk 0:02:35.9]} 19. cxd4 {[%clk
0:03:34.1]} 19... Qd7 {[%clk 0:02:16]} 20. Qd3 {[%clk 0:03:26.6]} 20... Rfd8
{[%clk 0:02:12.7]} 21. Rab1 {[%clk 0:03:15.3]} 21... Qxa4 {[%clk 0:02:07.7]} 22.
Bxb7 {[%clk 0:03:08.9]} 22... Rb8 {[%clk 0:01:45.1]} 23. Ba6 {[%clk 0:02:58.6]}
23... Rxb1 {[%clk 0:01:29.5]} 24. Rxb1 {[%clk 0:02:58.5]} 24... h6 {[%clk
0:01:13.1]} 25. h3 {[%clk 0:02:53.1]} 25... Nxe5 {[%clk 0:01:11.3]} 26. Qg3
{[%clk 0:02:42]} 26... Ng6 {[%clk 0:01:07.8]} 27. Rb7 {[%clk 0:02:31.8]} 27...
Nxb7 {[%clk 0:01:05.8]} 28. Bxb7 {[%clk 0:02:30.4]} 0-1

[Event "Live Chess"]
[Site "Chess.com"]
[Date "2023.05.21"]
[Round "-"]
[White "LiamBellwood"]
[Black "Ian-Morley"]
[Result "1-0"]
[WhiteElo "1934"]
[BlackElo "1051"]
[TimeControl "300"]
[EndTime "3:44:00 PDT"]
[Termination "LiamBellwood won by resignation"]

1. d4 {[%clk 0:04:59.5]} 1... e5 {[%clk 0:04:58.3]} 2. Nc3 {[%clk 0:04:59.2]}
2... exd4 {[%clk 0:04:57.1]} 3. Qxd4 {[%clk 0:04:59.1]} 3... Nc6 {[%clk
0:04:54.9]} 4. Qd1 {[%clk 0:04:58.4]} 4... Nf6 {[%clk 0:04:53.5]} 5. Nf3 {[%clk
0:04:56.4]} 5... d6 {[%clk 0:04:50.4]} 6. Bg5 {[%clk 0:04:55.5]} 6... Be7 {[%clk
0:04:47.9]} 7. e3 {[%clk 0:04:54.8]} 7... Bg4 {[%clk 0:04:46.8]} 8. Be2 {[%clk
0:04:52.9]} 8... Bxf3 {[%clk 0:04:45.8]} 9. Bxf3 {[%clk 0:04:52.8]} 9... h6
{[%clk 0:04:45.2]} 10. Bh4 {[%clk 0:04:51.8]} 10... g5 {[%clk 0:04:44.4]} 11.
Bg3 {[%clk 0:04:51.4]} 11... Nh5 {[%clk 0:04:43.6]} 12. Bxh5 {[%clk 0:04:50.4]}
12... Ne5 {[%clk 0:04:38.4]} 13. Qd5 {[%clk 0:04:44.4]} 13... c6 {[%clk
0:04:29.7]} 14. Qd4 {[%clk 0:04:43]} 14... Rf8 {[%clk 0:04:26.4]} 15. O-O-O
{[%clk 0:04:40.8]} 15... c5 {[%clk 0:04:22]} 16. Qd5 {[%clk 0:04:38.9]} 16...
Qc7 {[%clk 0:04:09.2]} 17. Nb5 {[%clk 0:04:34.7]} 17... Qc6 {[%clk 0:04:05.6]}
18. Qxc6+ {[%clk 0:04:30.9]} 18... bxc6 {[%clk 0:03:59]} 19. Nc7+ {[%clk
0:04:30.8]} 19... Kd7 {[%clk 0:03:57.2]} 20. Nxa8 {[%clk 0:04:30.7]} 20... Rxa8
{[%clk 0:03:56.6]} 21. Bxe5 {[%clk 0:04:30]} 1-0